Workbook

Sheet Resistors
C2: Designed By Alex Saunders Use smillies to lock / unlock sheet to edit.
B5: Beware Some Values Can Be Rounded | G5: This Colours Cells Only Can Be Changed
B6: Sheet Decimal Point Value Here > | E6: 9
G8: Total Resistance Calculator | L8: Voltage Across (Series Risistors) | P8: R total = | Q8: =ROUND(SUM(L11:P11),E6) -> 56.40602437
B9: Ohms Law Extra | G9: 1 - 3 parallel & 4 - 5 series | L9: Total Value From Cell G17 | O9: From I16 | P9: From I17 | Q9: Total
B10: V = I x R | C10: I = V / R | D10: R = V / I | G10: Parallel | H10: Number Of | K10: Total Volts | L10: =S29&" Parallel" -> Parallel | O10: R4 | P10: R5 | Q10: Amps
B11: Voltage | C11: Current | D11: Resistance | G11: 1/r | H11: Resistors | I11: Ohms Value | K11: =IF(B14="",C16,B14) -> 240 | L11: =G16 -> 12.40602437 | O11: =I15 -> 22 | P11: =I16 -> 22 | Q11: =IFERROR(ROUND(K11/SUM(L11:P11),E6),0) -> 4.254864666
B12: V = Volts | C12: I = Amps | D12: R = Ohms | G12: =IF(I12>0,ROUND(1/I12,6),"") -> 0.030303 | H12: Parallel 1 | I12: 33 | K12: Voltage Across | L12: =IFERROR(ROUND(K11*(L11/SUM(L11:P11)),E6),0) -> 52.78595471 | O12: =IFERROR(ROUND(K11*(O11/SUM(L11:P11)),E6),0) -> 93.60702264 | P12: =IFERROR(ROUND(K11*(P11/SUM(L11:P11)),E6),0) -> 93.60702264 | Q12: =E6&" D Places" -> 9 D Places
B13: Use the calculator to set Resistance | G13: 0.02 | H13: Parallel 2 | I13: 50
B14: 240 | D14: 56.40602437 | G14: 0.030303 | H14: Parallel 3 | I14: 33
B15: ↑ Leave Desired Value Above Empty ↑ | G15: r/1 Total | H15: Series 4 | I15: 22
B16: ANSWER >>> | C16: =IF(B14=0,IF(OR(C14=0,D14=0),0,IF(AND((C14*D14)<1,(C14*D14)>0.001),MROUND(((C14*D14)*1000),0.001)&" mV",IF((C14*D14)<0.001,MROUND(((C14*D14)*1000000),0.001)&" uV",MROUND((C14*D14),0.001)&" Volts"))),(IF(C14=0,IF(OR(B14=0,D14=0),0,IF(AND((B14/D14)<1,(B14/D14)>0.001),MROUND(((B14/D14)*1000),0.001)&" mA",IF((B14/D14)<0.001,MROUND(((B14/D14)*1000000),0.001)&" uA",MROUND((B14/D14),0.001)&" Amps"))),IF(D14=0,IF(OR(B14=0,C14=0),0,IF(AND((B14/C14)<1,(B14/C14)>0.001),MROUND(((B14/C14)*1000),0.001)&" mΩ",IF((B14/C14)<0.001,MROUND(((B14/C14)*1000000),0.001)&" uΩ",MROUND((B14/C14),0.001)&" Ohms"))),"Leave Desired Quantity Empty")))) -> 4.255 Amps | G16: =IFERROR(ROUND(1/(SUM(G12:G14)),E6),"") -> 12.40602437 | H16: Series 5 | I16: 22
G17: Total | H17: True Value = | I17: =ROUND(IF(G16="",I15+I16,G16+I15+I16),E6) -> 56.40602437
B19: > >>> Power <<< < | G19: Visual Resistor Layout Diagram | L19: Current Across (Parallel Resistors) | P19: R total = | Q19: =ROUND(I17,E6) -> 56.40602437
G20: =IF(G25=1,"R1",IF(G25=2,"R2",IF(G25=4,"R3",IF(G25=3,"R1 R2",IF(G25=6,"R2 R3",IF(G25=7,"R1 R2 R3",IF(G25=5,"R1 R3","None"))))))) -> None | H20: =IF(I15>0,"R4",IF(I16>0,"R5","")) -> R4 | I20: =IF(U32>0,"R5","") ->  | L20: Voltage Value From G13 | O20: From G14 | P20: From G15 | Q20: Total
B21: Energy Formulas Power In Watts | G21: =IF(I12>0,1,0) -> 1 | H21: =IF(I13>0,2,0) -> 2 | I21: =IF(I14>0,4,0) -> 4 | K21: Total Volts | L21: R1 | O21: R2 | P21: R3 | Q21: Amps
B22: V * I | G22: =IF(AND($I$12>0,$I$13=0),0,$I$12) -> 33 | K22: =L12 -> 52.78595471 | L22: =I12 -> 33 | O22: =I13 -> 50 | P22: =I14 -> 33 | Q22: =IF(K22=0,0,IFERROR(ROUND(K11/SUM(L11:P11),E6),0)) -> 4.254864666
B23: ( I * I ) * R | C23: = | D23: =ROUND(IF(D14="",B14*C14,IF(C14=0,B14*(B14/D14),IF(B14=0,(C14*C14)*D14,0))),E6) -> 1021.16752 | G23: =IF(I13>0,I13,IF(I12>0,I12,IF(AND(I12=0,I14>0),I14,0))) -> 50 | H23: =IF(I15>0,I15,I16) -> 22 | I23: =IF(AND(I15>0,I16>0),I16,0) -> 22 | K23: Current Across | L23: =IFERROR(ROUND(Q22*(I12/SUM(I12:I14)*100)%,E6),0) -> 1.210435638 | O23: =IFERROR(ROUND(Q22*(I13/SUM(I12:I14)*100)%,E6),0) -> 1.833993391 | P23: =IFERROR(ROUND(Q22*(I14/SUM(I12:I14)*100)%,E6),0) -> 1.210435638 | Q23: =E6&" D Places" -> 9 D Places
B24: ( V / R ) * V | G24: =IF(AND(I12=0,I13=0),0,I14) -> 33
G25: =SUM(S30:U30) -> 0
G26: =IF(G22+G24=0,"Only Serial Resistors ","Parallel Resistors In The Circuit") -> Parallel Resistors In The Circuit

Sheet Various
D2: Designed By Alex Saunders Use smillies to lock / unlock sheet to edit.
B4: Half-Wave Antenna | F4: Resistor Color Code Values | V4: You Can Use These Names
B5: Freq MHz > | C5: 145 | Q5: Color | R5: Value | S5: Toll % | T5: Multi | U5: Total Val | V5: Range/Cell | W5: Times
B6: Feet | C6: Inches | Q6: None | V6: Named Value | W6: Values
B7: =TRUNC((5904/C5)/12) -> 3 | C7: =ROUND((5904/C5)-(B7*12),1) -> 4.7 | F7: =IF(F8="",0,VLOOKUP(F8,Q6:R19,2,0)*100) -> 900 | H7: =VLOOKUP(H8,Q7:R16,2,0)*10 -> 20 | J7: =VLOOKUP(J8,Q7:R16,2,0) -> 0 | L7: =VLOOKUP(L8,Q7:T18,4,0) -> 0.1 | N7: =VLOOKUP(N8,Q7:S18,3,0) -> 5 | Q7: Black | R7: 0 | S7: 0 | T7: 1 | U7: Ohm | V7: Tera | W7: 1000000000000
B8: =IF(C5>149.97,"Ariel Length Cm = ","Ariel Length Metres = ") -> Ariel Length Metres = | F8: White | H8: Red | J8: Black | L8: Red | N8: Gold | Q8: Brown | R8: 1 | S8: 1 | T8: 10 | U8: Ohm | V8: Giga | W8: =1000000000 -> 1000000000
B9: =ROUND(IF(B8="Ariel Length Metres = ",((5904/C5)*2.54)/100,(5904/C5)*2.54),2) -> 1.03 | Q9: Red | R9: 2 | S9: 2 | T9: 0.1 | U9: K Ohm | V9: Mega | W9: =1000000 -> 1000000
F10: Value 3 | H10: Value 2 | J10: Value 1 | L10: Multiplier | N10: Tolarance | O10: =VLOOKUP(L8,Q7:U19,5,0) -> K Ohm | Q10: Orange | R10: 3 | T10: 1 | U10: K Ohm | V10: Kilo | W10: =1000 -> 1000
F11: =SUM(F7:J7)*L7&" " &O10&" "&N7&"% Tollerance" -> 92 K Ohm 5% Tollerance | Q11: Yellow | R11: 4 | T11: 10 | U11: K Ohm | V11: Not Used | W11: 0
Q12: Green | R12: 5 | S12: 0.5 | T12: 0.1 | U12: M Ohm | V12: Centi | W12: 0.01
B13: RMS | C13: Power | Q13: Blue | R13: 6 | S13: 0.25 | T13: 1 | U13: M Ohm | V13: Milli | W13: =0.001 -> 0.001
B14: Value RMS | C14: = Peek | Q14: Violet | R14: 7 | S14: 0.1 | T14: 10 | U14: M Ohm | V14: Micro | W14: =0.000001 -> 1e-06
B15: 50 | C15: =ROUND(B15/0.707,Resistors!E6) -> 70.72135785 | Q15: Grey | R15: 8 | S15: 0.05 | T15: 0.1 | U15: G Ohm | V15: Nano | W15: =0.000000001 -> 1e-09
B16: Value Peek | C16: = Rms | Q16: White | R16: 9 | T16: 1 | U16: G Ohm | V16: Pico | W16: =0.000000000001 -> 1e-12
B17: 50 | C17: =ROUND(B17*0.707,Resistors!E6) -> 35.35 | Q17: Gold | S17: 5 | T17: 0.1 | U17: Ohms | V17: Py | W17: 3.142
Q18: Silver | S18: 10 | T18: 0.01 | U18: Ohms | V18: Ppy | W18: 6.284
V19: eg. =2*Mega | W19: eg. =4.7*micro
B20: Phase Angle Volts To Current | V20: =2*Mega -> 2000000 | W20: =4.7*Micro -> 4.7e-06
B21: Formula = Tan-1 (Xl / R ) | V21: A Name Example
B22: Atan uses radians so we use
B23: *180/Pi() converts it into Degrees ° | V23: Example of Use: in XL Inductance - enter the values for Cell C6 =4.7*Micro and Cell B6 =2*Mega
B24: eg. =(ATAN(XL / R))*180/PI()
B25: Phase Angle ° = | C25: =ROUND((ATAN(Capacitors!C23/Capacitors!E8))*180/Py,Resistors!E6) -> 84.5343595
V27: The Answer = | W27: =ROUND(Ppy*Capacitors!B8*Capacitors!C8,Resistors!E6) -> 590.696

Sheet Capacitors
C2: Designed By Alex Saunders Use smillies to lock / unlock sheet to edit.
B5: You Can Enter Values As Formula ie. =2.7*Micro | H5: Total Capacity Calculator
B6: OR Simply as normal 0.0000027 either way its the same. | H6: 1 - 3 series & 4 - 5 parallel
B7: Frequency Hz | C7: Henries | D7: Capacitance | E7: Resistance | H7: Series | I7: Number Of
B8: =2*Mega -> 2000000 | C8: =47*Micro -> 4.7e-05 | D8: 53.33333333 | E8: 56.40602437 | H8: 1/C | I8: Capacitors | J8: Micro Farad
H9: =IF(J9>0,ROUND(1/(J9),Resistors!E6),"") -> 0.1 | I9: Serial 1 | J9: 10
H10: =IF(J10>0,ROUND(1/(J10),Resistors!E6),"") -> 0.1 | I10: Serial 2 | J10: 10
B11: Capacitor Reactance XC | E11: Choose Type Here ↓↓↓ | H11: =IF(J11>0,ROUND(1/(J11),Resistors!E6),"") -> 0.1 | I11: Serial 3 | J11: 10
B12: Formula Is = 1 / (2Pi * f * C) | E12: Impedance Z | F12: a XL Circuit | H12: c/1 Total | I12: Parallel 4 | J12: 30
B13: Frequency | C13: Capacitance | E13: =IF(F12="a XL Circuit","Formula Is = Sqrt( R ² + Xl ²","Formula Is = Sqrt( R ² + XC ²") -> Formula Is = Sqrt( R ² + Xl ² | H13: =1/(SUM(H9:H11)) -> 3.333333333 | I13: Parallel 5 | J13: 20
B14: =B8 -> 2000000 | C14: =ROUND(D8/1000000,Resistors!E6) -> 5.3333e-05 | E14: R is Ohms | F14: =IF(F12="a XL Circuit","Xl is Reactance","XC is Reactance") -> Xl is Reactance | H14: Total | I14: True Value = | J14: =ROUND(IF(H13="",J12+J13,H13+J12+J13),Resistors!E6) -> 53.33333333
B15: Xc Answer = | C15: =ROUND(1/(Ppy*B8*D8),Resistors!E6) -> 1e-09 | E15: =E8 -> 56.40602437 | F15: =IF($F$12="a XL Circuit","Xl = cell C21","XC = cell C13") -> Xl = cell C21
E16: Z Answer = | F16: =IF(E8=0,"Check Values",IF(F12="a XL Circuit",ROUND(SQRT((E8*E8)+(C23*C23)),Resistors!E6),ROUND(SQRT((E8*E8)+(C15*C15)),Resistors!E6))) -> 593.3830163
B19: Inductive Reactance XL | E19: Phase Angle Volts To Current
B20: Formula is -2Pi * f * L | E20: Formula = Tan-1 (Xl / R )
B21: Frequency | C21: Henries | E21: R is Ohms | F21: =IF(E20="Formula = Tan-1 (Xl / R )","Xl is Reactance","XC is Reactance") -> Xl is Reactance
B22: =B8 -> 2000000 | C22: =C8 -> 4.7e-05 | E22: =E8 -> 56.40602437 | F22: =IF($E$20="Formula = Tan-1 (Xl / R )",$C$23,$C$15) -> 590.696
B23: XL Answer = | C23: =ROUND(Ppy*B8*C8,Resistors!E6) -> 590.696 | E23: Phase Angle ° = | F23: =IFERROR(ROUND((ATAN($C$23/$E$8))*180/Py,Resistors!$E$6),"check values") -> 84.5343595
